[Event "*** Titled Tuesday Blitz"]
[Site "Chess.com"]
[Date "2020.10.20"]
[Round "5"]
[White "ambaixador"]
[Black "Omk124"]
[Result "0-1"]
[WhiteElo "2312"]
[BlackElo "2492"]
[TimeControl "180+1"]
[EndTime "10:57:45 PDT"]
[Termination "Omk124 won on time"]

1. Nf3 {[%clk 0:03:00.9]} 1... Nf6 {[%clk 0:02:59.7]} 2. c4 {[%clk 0:03:00]}
2... g6 {[%clk 0:02:59.7]} 3. g3 {[%clk 0:02:59.8]} 3... Bg7 {[%clk 0:03:00.2]}
4. Bg2 {[%clk 0:03:00.5]} 4... O-O {[%clk 0:03:00.9]} 5. O-O {[%clk 0:03:01.1]}
5... c6 {[%clk 0:03:01.5]} 6. d4 {[%clk 0:03:00.4]} 6... d5 {[%clk 0:03:02]} 7.
Qb3 {[%clk 0:03:00.4]} 7... dxc4 {[%clk 0:03:01.6]} 8. Qxc4 {[%clk 0:02:59.9]}
8... Be6 {[%clk 0:03:02.3]} 9. Qc2 {[%clk 0:02:59.8]} 9... Nbd7 {[%clk
0:03:02.5]} 10. Nc3 {[%clk 0:02:59.6]} 10... Nb6 {[%clk 0:03:00.9]} 11. e4
{[%clk 0:02:57.6]} 11... Rb8 {[%clk 0:02:49]} 12. Rd1 {[%clk 0:02:52.7]} 12...
Qc8 {[%clk 0:02:48.2]} 13. Bf4 {[%clk 0:02:37]} 13... Ra8 {[%clk 0:02:47.9]} 14.
Rac1 {[%clk 0:02:29.3]} 14... Bh3 {[%clk 0:02:46.1]} 15. Bh1 {[%clk 0:02:27.2]}
15... Rd8 {[%clk 0:02:45.4]} 16. Ne5 {[%clk 0:01:43.1]} 16... Nh5 {[%clk
0:02:43.5]} 17. Be3 {[%clk 0:01:37.5]} 17... Be6 {[%clk 0:02:33.5]} 18. f4
{[%clk 0:01:34.1]} 18... Bxe5 {[%clk 0:02:28.9]} 19. dxe5 {[%clk 0:01:30.2]}
19... Rxd1+ {[%clk 0:02:25.3]} 20. Rxd1 {[%clk 0:01:31.1]} 20... Bg4 {[%clk
0:02:24.2]} 21. Rd4 {[%clk 0:01:23.2]} 21... Qe6 {[%clk 0:02:20.5]} 22. Qd3
{[%clk 0:01:18.6]} 22... Kg7 {[%clk 0:02:11.3]} 23. b3 {[%clk 0:01:12.5]} 23...
Qc8 {[%clk 0:02:02.8]} 24. a4 {[%clk 0:01:04.3]} 24... c5 {[%clk 0:02:01.8]} 25.
Rd5 {[%clk 0:01:02.1]} 25... Nxd5 {[%clk 0:02:00.2]} 26. exd5 {[%clk 0:01:03]}
26... b6 {[%clk 0:01:54.5]} 27. Bd2 {[%clk 0:00:36.3]} 27... Bf5 {[%clk
0:01:52.8]} 28. Qe3 {[%clk 0:00:29.1]} 28... Kg8 {[%clk 0:01:50.4]} 29. Bf3
{[%clk 0:00:25.9]} 29... Ng7 {[%clk 0:01:49.6]} 30. d6 {[%clk 0:00:22.4]} 30...
exd6 {[%clk 0:01:44.6]} 31. Bxa8 {[%clk 0:00:22.2]} 31... Qxa8 {[%clk
0:01:44.7]} 32. exd6 {[%clk 0:00:22.8]} 32... Ne6 {[%clk 0:01:45.3]} 33. Nb5
{[%clk 0:00:20.3]} 33... Qd5 {[%clk 0:01:44.9]} 34. Bc3 {[%clk 0:00:18.6]} 34...
Bh3 {[%clk 0:01:43]} 35. Kf2 {[%clk 0:00:17.6]} 35... Qh1 {[%clk 0:01:37.2]} 36.
Qe5 {[%clk 0:00:16.3]} 36... Qxh2+ {[%clk 0:01:36]} 37. Kf3 {[%clk 0:00:15]}
37... Qg2+ {[%clk 0:01:34.8]} 38. Ke3 {[%clk 0:00:15.2]} 38... Qxg3+ {[%clk
0:01:35.2]} 39. Kd2 {[%clk 0:00:15.6]} 39... Qxf4+ {[%clk 0:01:34.7]} 40. Qxf4
{[%clk 0:00:14.4]} 40... Nxf4 {[%clk 0:01:35.6]} 41. Nxa7 {[%clk 0:00:12.7]}
41... Nd5 {[%clk 0:01:35.1]} 42. Be5 {[%clk 0:00:12]} 42... h5 {[%clk
0:01:35.3]} 43. Nc6 {[%clk 0:00:11.7]} 43... Kf8 {[%clk 0:01:31.3]} 44. Bg3
{[%clk 0:00:06.3]} 44... Ke8 {[%clk 0:01:27.9]} 45. Bh4 {[%clk 0:00:06.4]} 45...
Bd7 {[%clk 0:01:27.1]} 46. Ne5 {[%clk 0:00:06.4]} 46... Bf5 {[%clk 0:01:09]} 47.
Nc4 {[%clk 0:00:06.4]} 47... Kd7 {[%clk 0:01:08.8]} 48. Ne5+ {[%clk 0:00:06.3]}
48... Kxd6 {[%clk 0:01:08.3]} 49. Nxf7+ {[%clk 0:00:06.5]} 49... Kc7 {[%clk
0:01:07.8]} 50. Ng5 {[%clk 0:00:07.4]} 50... Nf4 {[%clk 0:01:07]} 51. Nf3 {[%clk
0:00:07]} 51... Ne6 {[%clk 0:01:07.2]} 52. Ng5 {[%clk 0:00:06.5]} 52... Nd4
{[%clk 0:01:07.2]} 53. Kc3 {[%clk 0:00:06.5]} 53... Be6 {[%clk 0:01:02.7]} 54.
Bg3+ {[%clk 0:00:04.7]} 54... Kb7 {[%clk 0:01:01.7]} 55. Ne4 {[%clk 0:00:04.1]}
55... Bxb3 {[%clk 0:01:00.4]} 56. Nd6+ {[%clk 0:00:03.9]} 56... Kc6 {[%clk
0:00:59.8]} 57. Ne4 {[%clk 0:00:03.4]} 57... Bxa4 {[%clk 0:00:59.8]} 58. Ng5
{[%clk 0:00:04]} 58... Bd1 {[%clk 0:00:59.5]} 59. Be5 {[%clk 0:00:03.2]} 59...
Kd5 {[%clk 0:00:59.1]} 60. Bg7 {[%clk 0:00:02.1]} 60... Bg4 {[%clk 0:00:59]} 61.
Nf7 {[%clk 0:00:02.1]} 61... Bf5 {[%clk 0:00:59.4]} 62. Ng5 {[%clk 0:00:02.2]}
62... b5 {[%clk 0:00:59.8]} 63. Nh3 {[%clk 0:00:02.2]} 63... b4+ {[%clk
0:01:00.3]} 64. Kb2 {[%clk 0:00:01.8]} 64... c4 {[%clk 0:01:00.9]} 0-1

[Event "*** Titled Tuesday Blitz"]
[Site "Chess.com"]
[Date "2020.10.20"]
[Round "5"]
[White "Bulldog167"]
[Black "vugarrasulov"]
[Result "0-1"]
[WhiteElo "2753"]
[BlackElo "2867"]
[TimeControl "180+1"]
[EndTime "10:57:46 PDT"]
[Termination "vugarrasulov won by resignation"]

1. e4 {[%clk 0:03:00.9]} 1... e5 {[%clk 0:02:59.9]} 2. Nf3 {[%clk 0:03:00.7]}
2... Nf6 {[%clk 0:02:59.4]} 3. Nxe5 {[%clk 0:02:59]} 3... d6 {[%clk 0:02:59.6]}
4. Nf3 {[%clk 0:02:59.2]} 4... Nxe4 {[%clk 0:02:59.7]} 5. d3 {[%clk 0:02:53.5]}
5... Nf6 {[%clk 0:02:59.6]} 6. d4 {[%clk 0:02:54.1]} 6... d5 {[%clk 0:02:59.8]}
7. Bd3 {[%clk 0:02:54.7]} 7... Bd6 {[%clk 0:02:49.9]} 8. Qe2+ {[%clk 0:02:54.3]}
8... Qe7 {[%clk 0:02:46.6]} 9. Qxe7+ {[%clk 0:02:53.7]} 9... Kxe7 {[%clk
0:02:47.5]} 10. O-O {[%clk 0:02:45.4]} 10... Re8 {[%clk 0:02:47.2]} 11. Bg5
{[%clk 0:02:44.8]} 11... Nd7 {[%clk 0:02:46.5]} 12. Bxh7 {[%clk 0:02:40.9]}
12... Kf8 {[%clk 0:02:05.7]} 13. Bd3 {[%clk 0:02:38.9]} 13... Ne4 {[%clk
0:02:05.5]} 14. Bh4 {[%clk 0:02:33.3]} 14... Ndf6 {[%clk 0:02:01.7]} 15. Nbd2
{[%clk 0:02:24.8]} 15... Bg4 {[%clk 0:02:00.2]} 16. Rfe1 {[%clk 0:02:21.9]}
16... c6 {[%clk 0:01:58]} 17. Bxf6 {[%clk 0:02:14.4]} 17... Nxf6 {[%clk
0:01:57.4]} 18. Ne5 {[%clk 0:02:14.8]} 18... Be6 {[%clk 0:01:43.6]} 19. Ndf3
{[%clk 0:02:00.7]} 19... Ng4 {[%clk 0:01:25.1]} 20. c3 {[%clk 0:01:51]} 20...
Nxe5 {[%clk 0:01:22.9]} 21. Nxe5 {[%clk 0:01:51.9]} 21... f6 {[%clk 0:01:21.2]}
22. Nf3 {[%clk 0:01:31.1]} 22... g5 {[%clk 0:01:21.2]} 23. Nd2 {[%clk
0:01:20.6]} 23... a5 {[%clk 0:01:19]} 24. a4 {[%clk 0:01:18.5]} 24... b6 {[%clk
0:01:18.7]} 25. Nf1 {[%clk 0:01:18.2]} 25... Re7 {[%clk 0:01:13.1]} 26. Ne3
{[%clk 0:01:14.5]} 26... Rae8 {[%clk 0:01:10.4]} 27. Bg6 {[%clk 0:01:14.4]}
27... Bf7 {[%clk 0:01:05.8]} 28. Bxf7 {[%clk 0:01:14]} 28... Kxf7 {[%clk
0:01:06.7]} 29. Kf1 {[%clk 0:01:11.1]} 29... Bxh2 {[%clk 0:01:05.4]} 30. Nf5
{[%clk 0:00:46.9]} 30... Rxe1+ {[%clk 0:01:03.1]} 31. Rxe1 {[%clk 0:00:47.8]}
31... Rxe1+ {[%clk 0:01:03.3]} 32. Kxe1 {[%clk 0:00:48.4]} 32... Bc7 {[%clk
0:00:54.1]} 33. g4 {[%clk 0:00:46.9]} 33... Bf4 {[%clk 0:00:52.9]} 34. Kd1
{[%clk 0:00:46.6]} 34... Ke6 {[%clk 0:00:52.2]} 35. Kc2 {[%clk 0:00:46.8]} 35...
Kd7 {[%clk 0:00:51.5]} 36. b3 {[%clk 0:00:41.5]} 36... b5 {[%clk 0:00:47.6]} 37.
Kd3 {[%clk 0:00:36.1]} 37... Bh2 {[%clk 0:00:41.4]} 38. Ne3 {[%clk 0:00:33]}
38... Ke6 {[%clk 0:00:36.2]} 39. Nc2 {[%clk 0:00:29.3]} 39... bxa4 {[%clk
0:00:27.5]} 40. bxa4 {[%clk 0:00:29.3]} 40... f5 {[%clk 0:00:26.7]} 41. f3
{[%clk 0:00:29.3]} 41... fxg4 {[%clk 0:00:25.4]} 42. fxg4 {[%clk 0:00:30.2]}
42... Bf4 {[%clk 0:00:25.7]} 43. Na1 {[%clk 0:00:30.1]} 43... Bc7 {[%clk
0:00:24.7]} 44. Nb3 {[%clk 0:00:30.5]} 44... Bb6 {[%clk 0:00:24.5]} 45. Ke3
{[%clk 0:00:21.9]} 45... Kf6 {[%clk 0:00:23.7]} 46. Nc1 {[%clk 0:00:21.7]} 46...
Bc7 {[%clk 0:00:22.4]} 47. Nd3 {[%clk 0:00:21.5]} 47... Bd6 {[%clk 0:00:22.8]}
48. Nc1 {[%clk 0:00:20]} 48... Bf4+ {[%clk 0:00:22.1]} 49. Kd3 {[%clk
0:00:19.9]} 49... Bxc1 {[%clk 0:00:23]} 50. Kc2 {[%clk 0:00:19.8]} 50... Bf4
{[%clk 0:00:22.8]} 51. Kd3 {[%clk 0:00:20.4]} 51... Ke6 {[%clk 0:00:23.2]} 52.
Kc2 {[%clk 0:00:20.8]} 52... Kd6 {[%clk 0:00:23.7]} 53. Kd3 {[%clk 0:00:20.7]}
53... c5 {[%clk 0:00:23.5]} 54. Ke2 {[%clk 0:00:19.2]} 54... Kc6 {[%clk
0:00:22.6]} 55. Kd3 {[%clk 0:00:19.4]} 55... Bh2 {[%clk 0:00:22.7]} 56. Ke3
{[%clk 0:00:14.8]} 56... Bg1+ {[%clk 0:00:22.6]} 57. Kd3 {[%clk 0:00:15.5]}
57... Kd6 {[%clk 0:00:22.6]} 0-1

[Event "*** Titled Tuesday Blitz"]
[Site "Chess.com"]
[Date "2020.10.20"]
[Round "5"]
[White "Koalaskakistis"]
[Black "Pavalamalli"]
[Result "0-1"]
[WhiteElo "2453"]
[BlackElo "2307"]
[TimeControl "180+1"]
[EndTime "10:57:46 PDT"]
[Termination "Pavalamalli won on time"]

1. Nf3 {[%clk 0:03:00.9]} 1... c5 {[%clk 0:03:00]} 2. g3 {[%clk 0:03:01.2]} 2...
b6 {[%clk 0:02:59.7]} 3. Bg2 {[%clk 0:03:01.4]} 3... Bb7 {[%clk 0:03:00.1]} 4.
O-O {[%clk 0:03:02.3]} 4... Nf6 {[%clk 0:03:00]} 5. a4 {[%clk 0:03:01.7]} 5...
Nc6 {[%clk 0:02:55.6]} 6. d3 {[%clk 0:03:01.4]} 6... e6 {[%clk 0:02:55.6]} 7. e4
{[%clk 0:03:00.7]} 7... d6 {[%clk 0:02:53.1]} 8. Nc3 {[%clk 0:02:56.6]} 8... Be7
{[%clk 0:02:48.8]} 9. Re1 {[%clk 0:02:55.8]} 9... O-O {[%clk 0:02:48.4]} 10. d4
{[%clk 0:02:55.6]} 10... cxd4 {[%clk 0:02:48]} 11. Nxd4 {[%clk 0:02:56.5]} 11...
Nxd4 {[%clk 0:02:47]} 12. Qxd4 {[%clk 0:02:56.1]} 12... Rc8 {[%clk 0:02:45.8]}
13. b3 {[%clk 0:02:55.2]} 13... d5 {[%clk 0:02:35.8]} 14. Bb2 {[%clk 0:02:33.7]}
14... Bc5 {[%clk 0:02:31.6]} 15. Qd2 {[%clk 0:02:24.1]} 15... d4 {[%clk
0:02:30.8]} 16. Nb5 {[%clk 0:02:17]} 16... a6 {[%clk 0:02:10.2]} 17. Na3 {[%clk
0:02:15.8]} 17... e5 {[%clk 0:02:07.9]} 18. Nc4 {[%clk 0:02:15.5]} 18... Qe7
{[%clk 0:02:05.7]} 19. Ba3 {[%clk 0:02:11.5]} 19... Bxa3 {[%clk 0:02:04.4]} 20.
Nxa3 {[%clk 0:02:06.9]} 20... Rc5 {[%clk 0:01:51.2]} 21. Nc4 {[%clk 0:01:58.3]}
21... Qc7 {[%clk 0:01:48.3]} 22. Qb4 {[%clk 0:01:45.9]} 22... b5 {[%clk
0:01:35.2]} 23. axb5 {[%clk 0:01:46.8]} 23... axb5 {[%clk 0:01:35.3]} 24. Na3
{[%clk 0:01:44.7]} 24... Qb6 {[%clk 0:01:27.4]} 25. f3 {[%clk 0:01:37.1]} 25...
d3 {[%clk 0:01:19.5]} 26. Kh1 {[%clk 0:01:32.9]} 26... dxc2 {[%clk 0:01:18.7]}
27. Rac1 {[%clk 0:01:29]} 27... Rfc8 {[%clk 0:01:17.8]} 28. Re2 {[%clk
0:01:28.6]} 28... Qd6 {[%clk 0:01:05.2]} 29. Rcxc2 {[%clk 0:00:57.8]} 29... Rxc2
{[%clk 0:00:49.8]} 30. Qxd6 {[%clk 0:00:56.5]} 30... Rxe2 {[%clk 0:00:46.4]} 31.
h4 {[%clk 0:00:52.5]} 31... h5 {[%clk 0:00:42.9]} 32. Qb6 {[%clk 0:00:44.7]}
32... Rc1+ {[%clk 0:00:40.5]} 33. Kh2 {[%clk 0:00:43.6]} 33... Bc8 {[%clk
0:00:38.8]} 34. Qd8+ {[%clk 0:00:25.8]} 34... Kh7 {[%clk 0:00:37.5]} 35. Qd3
{[%clk 0:00:26.7]} 35... Rb2 {[%clk 0:00:27.7]} 36. Nxb5 {[%clk 0:00:16.8]}
36... Rcc2 {[%clk 0:00:26.8]} 37. Qf1 {[%clk 0:00:16.7]} 37... Ba6 {[%clk
0:00:26.2]} 38. Kh3 {[%clk 0:00:14.4]} 38... Bxb5 {[%clk 0:00:25.7]} 39. Qxb5
{[%clk 0:00:13.8]} 39... Rxg2 {[%clk 0:00:25.8]} 40. g4 {[%clk 0:00:14.7]} 40...
hxg4+ {[%clk 0:00:23.1]} 41. fxg4 {[%clk 0:00:14.6]} 41... Nxg4 {[%clk
0:00:22.2]} 42. Qd7 {[%clk 0:00:08.7]} 42... Nh6 {[%clk 0:00:20.1]} 43. h5
{[%clk 0:00:05.8]} 43... Rge2 {[%clk 0:00:16.8]} 44. Kh4 {[%clk 0:00:03.2]}
44... Rxb3 {[%clk 0:00:15.3]} 0-1

[Event "*** Titled Tuesday Blitz"]
[Site "Chess.com"]
[Date "2020.10.20"]
[Round "5"]
[White "pastouche06"]
[Black "jlmanzanares"]
[Result "1-0"]
[WhiteElo "2464"]
[BlackElo "2244"]
[TimeControl "180+1"]
[EndTime "10:57:46 PDT"]
[Termination "pastouche06 won by resignation"]

1. d4 {[%clk 0:03:00.9]} 1... Nf6 {[%clk 0:02:57.7]} 2. c4 {[%clk 0:03:00.4]}
2... g6 {[%clk 0:02:57.9]} 3. f3 {[%clk 0:02:58.9]} 3... Bg7 {[%clk 0:02:56.5]}
4. e4 {[%clk 0:02:58.5]} 4... d6 {[%clk 0:02:57]} 5. Ne2 {[%clk 0:02:59.1]} 5...
O-O {[%clk 0:02:56.4]} 6. Be3 {[%clk 0:02:59.6]} 6... Nc6 {[%clk 0:02:56.4]} 7.
Qd2 {[%clk 0:02:59.4]} 7... a6 {[%clk 0:02:56.2]} 8. Nec3 {[%clk 0:02:57.9]}
8... Rb8 {[%clk 0:02:55.8]} 9. Be2 {[%clk 0:02:54.7]} 9... e5 {[%clk 0:02:55.6]}
10. d5 {[%clk 0:02:54.6]} 10... Nd4 {[%clk 0:02:55.3]} 11. Bxd4 {[%clk
0:02:43.9]} 11... exd4 {[%clk 0:02:54.8]} 12. Qxd4 {[%clk 0:02:44.5]} 12... Ng4
{[%clk 0:02:47.4]} 13. Qd2 {[%clk 0:02:30.3]} 13... Bh6 {[%clk 0:02:36.5]} 14.
f4 {[%clk 0:02:30.7]} 14... Qh4+ {[%clk 0:02:27.6]} 15. g3 {[%clk 0:02:30.3]}
15... Qh3 {[%clk 0:02:26.2]} 16. Bf1 {[%clk 0:02:24.1]} 16... Qh5 {[%clk
0:02:18.5]} 17. Qe2 {[%clk 0:02:05.3]} 17... f5 {[%clk 0:02:14.2]} 18. h3 {[%clk
0:01:56.8]} 18... fxe4 {[%clk 0:02:13]} 19. Nxe4 {[%clk 0:01:49.9]} 19... Bf5
{[%clk 0:02:07]} 20. Nbc3 {[%clk 0:01:37.2]} 20... Rbe8 {[%clk 0:02:06.4]} 21.
Bg2 {[%clk 0:01:36.5]} 21... Bxe4 {[%clk 0:02:04.8]} 22. Nxe4 {[%clk 0:01:32.6]}
22... Rxe4 {[%clk 0:00:36.7]} 23. Bxe4 {[%clk 0:01:33.5]} 23... Nf6 {[%clk
0:00:36]} 24. Qxh5 {[%clk 0:01:33.5]} 24... Nxh5 {[%clk 0:00:32.6]} 25. Kf2
{[%clk 0:01:26.7]} 25... Nf6 {[%clk 0:00:19.6]} 26. Bf3 {[%clk 0:01:25.2]} 26...
g5 {[%clk 0:00:17.5]} 27. fxg5 {[%clk 0:01:21]} 27... Bxg5 {[%clk 0:00:16.9]}
28. Rae1 {[%clk 0:01:20.9]} 28... Kg7 {[%clk 0:00:14.8]} 29. Re6 {[%clk
0:01:18.6]} 29... Rf7 {[%clk 0:00:14.5]} 30. Rhe1 {[%clk 0:01:15.4]} 30... Bd2
{[%clk 0:00:13.5]} 31. R1e2 {[%clk 0:01:13.9]} 31... Bb4 {[%clk 0:00:13.4]} 32.
Re7 {[%clk 0:01:12.6]} 32... Bc5+ {[%clk 0:00:14.3]} 33. Kg2 {[%clk 0:01:13.1]}
33... h6 {[%clk 0:00:13]} 34. Rxf7+ {[%clk 0:01:12.6]} 34... Kxf7 {[%clk
0:00:13.9]} 35. Bg4 {[%clk 0:01:12.7]} 35... Nxg4 {[%clk 0:00:13.3]} 36. hxg4
{[%clk 0:01:12.7]} 36... Bd4 {[%clk 0:00:12.6]} 37. b3 {[%clk 0:01:10.2]} 37...
Be5 {[%clk 0:00:12.2]} 38. Kf3 {[%clk 0:01:10.7]} 38... Kf6 {[%clk 0:00:12.6]}
39. Rh2 {[%clk 0:01:02.5]} 39... Kg6 {[%clk 0:00:11.2]} 40. Re2 {[%clk
0:00:55.7]} 40... Kf6 {[%clk 0:00:10.1]} 41. Kg2 {[%clk 0:00:55.7]} 41... a5
{[%clk 0:00:08.4]} 42. Rf2+ {[%clk 0:00:55.4]} 42... Kg6 {[%clk 0:00:07.6]} 43.
Rf5 {[%clk 0:00:55.2]} 43... b6 {[%clk 0:00:07.3]} 44. Kf3 {[%clk 0:00:53.5]}
44... Bf6 {[%clk 0:00:06.7]} 45. Ke4 {[%clk 0:00:47.6]} 45... Kg7 {[%clk
0:00:06.7]} 46. Rf1 {[%clk 0:00:39.8]} 46... Kg6 {[%clk 0:00:06.8]} 47. Kf3
{[%clk 0:00:40.3]} 47... Be5 {[%clk 0:00:07]} 48. Re1 {[%clk 0:00:40.4]} 48...
Kf6 {[%clk 0:00:05.8]} 49. Kg2 {[%clk 0:00:39.3]} 49... Kg6 {[%clk 0:00:05.6]}
50. Kh3 {[%clk 0:00:39.1]} 50... Kf6 {[%clk 0:00:05.6]} 51. Kh4 {[%clk
0:00:39.4]} 51... Bc3 {[%clk 0:00:05.6]} 52. Re6+ {[%clk 0:00:37.7]} 52... Kg7
{[%clk 0:00:05.4]} 53. Re7+ {[%clk 0:00:37.5]} 53... Kf6 {[%clk 0:00:05]} 54.
Rxc7 {[%clk 0:00:37.2]} 54... Be5 {[%clk 0:00:05.5]} 55. Rc6 {[%clk 0:00:36.1]}
55... Bd4 {[%clk 0:00:05.5]} 56. Rxd6+ {[%clk 0:00:36.2]} 56... Ke5 {[%clk
0:00:06.4]} 57. Rxh6 {[%clk 0:00:36.2]} 57... Be3 {[%clk 0:00:05.3]} 58. Re6+
{[%clk 0:00:36.3]} 58... Kd4 {[%clk 0:00:06.2]} 59. Rxe3 {[%clk 0:00:37.1]}
59... Kxe3 {[%clk 0:00:06.3]} 60. d6 {[%clk 0:00:37.5]} 1-0

[Event "*** Titled Tuesday Blitz"]
[Site "Chess.com"]
[Date "2020.10.20"]
[Round "5"]
[White "dpopadic"]
[Black "GothamChess"]
[Result "1/2-1/2"]
[WhiteElo "2392"]
[BlackElo "2614"]
[TimeControl "180+1"]
[EndTime "10:57:47 PDT"]
[Termination "Game drawn by repetition"]

1. e4 {[%clk 0:03:00.9]} 1... c6 {[%clk 0:02:57.9]} 2. d4 {[%clk 0:02:59.3]}
2... d5 {[%clk 0:02:58.8]} 3. Nd2 {[%clk 0:02:58.3]} 3... dxe4 {[%clk
0:02:58.1]} 4. Nxe4 {[%clk 0:02:58.2]} 4... Nf6 {[%clk 0:02:56.8]} 5. Ng3 {[%clk
0:02:57.7]} 5... h5 {[%clk 0:02:56.3]} 6. h3 {[%clk 0:02:52.9]} 6... h4 {[%clk
0:02:55]} 7. N3e2 {[%clk 0:02:52.4]} 7... Bf5 {[%clk 0:02:55]} 8. Nf3 {[%clk
0:02:48.1]} 8... e6 {[%clk 0:02:55]} 9. c3 {[%clk 0:02:47.4]} 9... Ne4 {[%clk
0:02:48.6]} 10. Nf4 {[%clk 0:02:44.6]} 10... Nd7 {[%clk 0:02:46.3]} 11. Bd3
{[%clk 0:02:43.8]} 11... Ndf6 {[%clk 0:02:42.7]} 12. Qe2 {[%clk 0:02:31.7]}
12... Qc7 {[%clk 0:02:29.8]} 13. Ne5 {[%clk 0:02:29.8]} 13... O-O-O {[%clk
0:02:23.9]} 14. Ng4 {[%clk 0:02:20.8]} 14... Bd6 {[%clk 0:02:11.5]} 15. Nxf6
{[%clk 0:02:20.1]} 15... Nxf6 {[%clk 0:02:06.7]} 16. Qf3 {[%clk 0:02:09.2]}
16... Qb6 {[%clk 0:01:40.9]} 17. Bxf5 {[%clk 0:02:03.5]} 17... exf5 {[%clk
0:01:40.7]} 18. O-O {[%clk 0:02:02.1]} 18... g6 {[%clk 0:01:30.9]} 19. Nd3
{[%clk 0:01:57.3]} 19... Ne4 {[%clk 0:01:29.7]} 20. Bf4 {[%clk 0:01:55.8]} 20...
Qc7 {[%clk 0:01:23.9]} 21. Bxd6 {[%clk 0:01:54.8]} 21... Qxd6 {[%clk 0:01:24.8]}
22. Rad1 {[%clk 0:01:52.8]} 22... Qf6 {[%clk 0:01:19.1]} 23. Nc5 {[%clk
0:01:48.8]} 23... Nxc5 {[%clk 0:01:14]} 24. dxc5 {[%clk 0:01:48.6]} 24... Qe5
{[%clk 0:01:12.7]} 25. b4 {[%clk 0:01:44.3]} 25... Rhe8 {[%clk 0:01:03.5]} 26.
a4 {[%clk 0:01:25.9]} 26... a6 {[%clk 0:00:51.9]} 27. Rxd8+ {[%clk 0:00:40.1]}
27... Rxd8 {[%clk 0:00:51.1]} 28. Rd1 {[%clk 0:00:39.5]} 28... Rxd1+ {[%clk
0:00:44.7]} 29. Qxd1 {[%clk 0:00:39.3]} 29... Qxc3 {[%clk 0:00:45.2]} 30. Qd6
{[%clk 0:00:39.2]} 30... Qe1+ {[%clk 0:00:33.5]} 31. Kh2 {[%clk 0:00:38.1]}
31... Qe6 {[%clk 0:00:33.4]} 32. Qf8+ {[%clk 0:00:35.6]} 32... Kc7 {[%clk
0:00:33]} 33. Kg1 {[%clk 0:00:29.3]} 33... g5 {[%clk 0:00:25.1]} 34. Qg7 {[%clk
0:00:26.9]} 34... g4 {[%clk 0:00:23]} 35. hxg4 {[%clk 0:00:23.6]} 35... fxg4
{[%clk 0:00:23.1]} 36. Qg5 {[%clk 0:00:24]} 36... Qe1+ {[%clk 0:00:16.2]} 37.
Kh2 {[%clk 0:00:23.7]} 37... Qxb4 {[%clk 0:00:15.9]} 38. Qe5+ {[%clk 0:00:21.8]}
38... Kc8 {[%clk 0:00:16.4]} 39. Qe8+ {[%clk 0:00:21.4]} 39... Kc7 {[%clk
0:00:17]} 40. Qe5+ {[%clk 0:00:20.3]} 40... Kd7 {[%clk 0:00:17.4]} 41. Qf5+
{[%clk 0:00:19.3]} 41... Ke7 {[%clk 0:00:17.6]} 42. Qe5+ {[%clk 0:00:19.4]}
42... Kd8 {[%clk 0:00:18.3]} 43. Qd6+ {[%clk 0:00:18.8]} 43... Ke8 {[%clk
0:00:16.2]} 44. Qe5+ {[%clk 0:00:18.9]} 44... Kd7 {[%clk 0:00:15.7]} 45. Qd6+
{[%clk 0:00:19]} 45... Kc8 {[%clk 0:00:16.6]} 46. Qf8+ {[%clk 0:00:18.8]} 46...
Kc7 {[%clk 0:00:12.8]} 47. Qd6+ {[%clk 0:00:18.7]} 47... Kc8 {[%clk 0:00:12.9]}
48. Qf8+ {[%clk 0:00:18.7]} 48... Kd7 {[%clk 0:00:13]} 49. Qd6+ {[%clk
0:00:18.4]} 49... Ke8 {[%clk 0:00:13]} 50. Qe5+ {[%clk 0:00:18.4]} 50... Kf8
{[%clk 0:00:10]} 51. Qh8+ {[%clk 0:00:17.8]} 51... Ke7 {[%clk 0:00:10.6]} 52.
Qe5+ {[%clk 0:00:17.5]} 52... Kf8 {[%clk 0:00:05.7]} 53. Qh8+ {[%clk 0:00:17.2]}
53... Ke7 {[%clk 0:00:05.4]} 54. Qe5+ {[%clk 0:00:17]} 1/2-1/2

[Event "*** Titled Tuesday Blitz"]
[Site "Chess.com"]
[Date "2020.10.20"]
[Round "5"]
[White "Resignify"]
[Black "pedro_nascimento85"]
[Result "1-0"]
[WhiteElo "2244"]
[BlackElo "1998"]
[TimeControl "180+1"]
[EndTime "10:57:47 PDT"]
[Termination "Resignify won by checkmate"]

1. e4 {[%clk 0:02:56.8]} 1... e6 {[%clk 0:02:58.7]} 2. d3 {[%clk 0:02:55.5]}
2... c5 {[%clk 0:02:58]} 3. Nd2 {[%clk 0:02:55.4]} 3... Nc6 {[%clk 0:02:57.8]}
4. Ngf3 {[%clk 0:02:55]} 4... g6 {[%clk 0:02:57.2]} 5. g3 {[%clk 0:02:54.8]}
5... Bg7 {[%clk 0:02:50.3]} 6. Bg2 {[%clk 0:02:54.6]} 6... Nge7 {[%clk
0:02:50.6]} 7. O-O {[%clk 0:02:54.3]} 7... d6 {[%clk 0:02:50.4]} 8. Re1 {[%clk
0:02:54]} 8... e5 {[%clk 0:02:50.2]} 9. a4 {[%clk 0:02:48.5]} 9... O-O {[%clk
0:02:46.1]} 10. Nc4 {[%clk 0:02:44.5]} 10... Be6 {[%clk 0:02:40.9]} 11. Ng5
{[%clk 0:02:41.2]} 11... Bxc4 {[%clk 0:02:38.9]} 12. dxc4 {[%clk 0:02:42.1]}
12... h6 {[%clk 0:02:37.9]} 13. Nf3 {[%clk 0:02:37.8]} 13... Nd4 {[%clk
0:02:36.4]} 14. c3 {[%clk 0:02:35.5]} 14... Nxf3+ {[%clk 0:02:24.1]} 15. Bxf3
{[%clk 0:02:33.3]} 15... f5 {[%clk 0:02:23.3]} 16. exf5 {[%clk 0:02:30]} 16...
Nxf5 {[%clk 0:02:17.4]} 17. Bxb7 {[%clk 0:02:29.5]} 17... Rb8 {[%clk 0:02:16.5]}
18. Be4 {[%clk 0:02:21.9]} 18... Qc7 {[%clk 0:02:11.6]} 19. Re2 {[%clk
0:02:20.2]} 19... Kh7 {[%clk 0:02:03.3]} 20. a5 {[%clk 0:02:12.7]} 20... a6
{[%clk 0:02:02.6]} 21. Be3 {[%clk 0:02:02]} 21... Nxe3 {[%clk 0:01:53.5]} 22.
fxe3 {[%clk 0:01:53.4]} 22... Rf7 {[%clk 0:01:34.9]} 23. Rd2 {[%clk 0:01:44.5]}
23... Rd8 {[%clk 0:01:32.8]} 24. Qg4 {[%clk 0:01:37.4]} 24... Rf6 {[%clk
0:01:26.4]} 25. h4 {[%clk 0:01:30.1]} 25... h5 {[%clk 0:01:26]} 26. Qxh5+ {[%clk
0:01:28.4]} 26... Kg8 {[%clk 0:01:21.6]} 27. Bxg6 {[%clk 0:01:26.6]} 27... Kf8
{[%clk 0:01:04]} 28. Qg5 {[%clk 0:00:46.7]} 28... Qe7 {[%clk 0:00:50.6]} 29. Rf2
{[%clk 0:00:34.1]} 29... Rxf2 {[%clk 0:00:49.1]} 30. Kxf2 {[%clk 0:00:32.1]}
30... Qxg5 {[%clk 0:00:47.1]} 31. hxg5 {[%clk 0:00:33]} 31... Ke7 {[%clk
0:00:47.3]} 32. Be4 {[%clk 0:00:22.9]} 32... Rb8 {[%clk 0:00:45.2]} 33. Ra2
{[%clk 0:00:21.4]} 33... Bf8 {[%clk 0:00:38.5]} 34. Kf3 {[%clk 0:00:21.3]} 34...
Ke6 {[%clk 0:00:35.1]} 35. Bd5+ {[%clk 0:00:19.7]} 35... Ke7 {[%clk 0:00:33.2]}
36. Kg4 {[%clk 0:00:19.2]} 36... Bg7 {[%clk 0:00:23.2]} 37. Kh5 {[%clk
0:00:15.2]} 37... Rh8+ {[%clk 0:00:22]} 38. Kg6 {[%clk 0:00:15.1]} 38... Bf8
{[%clk 0:00:22.1]} 39. b4 {[%clk 0:00:12.9]} 39... cxb4 {[%clk 0:00:20.3]} 40.
cxb4 {[%clk 0:00:13.5]} 40... Rh3 {[%clk 0:00:20.1]} 41. Rg2 {[%clk 0:00:10.6]}
41... Rh1 {[%clk 0:00:14.5]} 42. Rf2 {[%clk 0:00:07.2]} 42... Rb1 {[%clk
0:00:13.8]} 43. Rf7+ {[%clk 0:00:06.9]} 43... Ke8 {[%clk 0:00:13.1]} 44. Bc6+
{[%clk 0:00:07.1]} 44... Kd8 {[%clk 0:00:12.5]} 45. Rxf8+ {[%clk 0:00:07.3]}
45... Kc7 {[%clk 0:00:13]} 46. b5 {[%clk 0:00:07.4]} 46... axb5 {[%clk
0:00:12.6]} 47. cxb5 {[%clk 0:00:08.3]} 47... Ra1 {[%clk 0:00:11.9]} 48. Rf7+
{[%clk 0:00:06.6]} 48... Kc8 {[%clk 0:00:11.4]} 49. b6 {[%clk 0:00:05.3]} 49...
Rxa5 {[%clk 0:00:10.2]} 50. Rf8# {[%clk 0:00:05]} 1-0